bitfinex-derivatives/quotes_SOLF0:USTF0_20250109
["timestamp","ask_amount","ask_price","bid_price","bid_amount"]
[1736455944991,3.2996,183.83,183.71,2.722]
[1736455945193,20.388272,183.81,183.68,3.1721]
[1736455945398,2.7216,183.75,183.68,3.1721]
[1736455945594,20.388272,183.81,183.7,2.7222]
[1736455945794,20.388272,183.81,183.68,3.1721]
[1736455946094,3.2996,183.83,183.68,3.1721]
[1736455946591,3.2996,183.83,183.72,2.7219]
[1736455946793,3.2996,183.83,183.68,3.1721]
[1736455946994,2.7213,183.77,183.68,3.1721]
[1736455947201,20.388272,183.81,183.68,5.8946]
[1736455947795,20.388272,183.81,183.7,2.7222]
[1736455947996,20.388272,183.81,183.68,3.1721]
[1736455948494,2.7213,183.76,183.68,3.1721]
[1736455948694,3.2996,183.83,183.68,3.1721]
[1736455949003,2.7211,183.78,183.73,2.7216]
[1736455949304,3.2996,183.83,183.68,3.1721]
[1736455949601,87.41469299,183.8,183.68,3.1721]
[1736455949791,87.41469299,183.8,183.7,20.388272]
[1736455949991,87.41469299,183.8,183.68,3.1721]
[1736455949992,87.41469299,183.8,183.73,20.388272]
[1736455950195,87.41469299,183.8,183.74,1.5715]
[1736455950399,2.7205,183.82,183.76,2.7212]
[1736455950598,2.7205,183.82,183.74,1.5715]
[1736455951599,2.7203,183.83,183.74,1.5715]
[1736455951798,20.388272,183.87,183.74,1.5715]
[1736455952000,4.90722353,183.88,183.78,2.721]
[1736455952205,2.7201,183.84,183.74,7.7115]
[1736455952699,2.7197,183.87,183.76,20.388272]
[1736455952900,4.90722353,183.88,183.77,3.2053]
[1736455953100,20.388272,183.87,183.77,3.2053]
[1736455953305,2.7205,183.82,183.77,5.9264]
[1736455954205,20.388272,183.87,183.77,3.2053]
[1736455955902,26.528272,183.87,183.74,1.5715]
[1736455956904,26.528272,183.87,183.75,2.7213]
[1736455957106,21.76369273,183.86,183.74,1.5715]
[1736455957305,2.7205,183.82,183.77,2.721]
[1736455957505,21.76369273,183.86,183.77,2.721]
[1736455957806,26.528272,183.87,183.77,2.721]
[1736455958006,20.388272,183.84,183.74,1.5715]
[1736455958397,2.7206,183.81,183.74,1.5715]
[1736455958598,20.388272,183.84,183.74,1.5715]
[1736455958599,20.388272,183.84,183.75,2.7214]
[1736455959207,2.721,183.78,183.75,2.7214]
[1736455961204,2.721,183.78,183.74,4.2931]
[1736455961809,2.721,183.78,183.74,2.7216]
[1736455962909,20.388272,183.81,183.7,3.17]
[1736455963110,20.388272,183.78,183.7,1.5593]
[1736455963508,21.79054762,183.77,183.7,1.5593]
[1736455963711,21.79054762,183.77,183.65,1.6208]
[1736455963916,21.79054762,183.77,183.65,3.2328]
[1736455964215,109.20524061,183.77,183.65,5.9556]
[1736455964713,2.7222,183.71,183.66,2.7228]
[1736455965105,87.41469299,183.75,183.65,3.2328]
[1736455966017,87.41469299,183.75,183.59,6.12]
[1736455966018,87.41469299,183.74,183.57,6.12]
[1736455966215,87.41469299,183.74,183.58,4.7117]
[1736455966619,87.41469299,183.74,183.63,2.7232]
[1736455966620,20.388272,183.72,183.63,2.7232]
[1736455966815,20.388272,183.72,183.58,4.7117]
[1736455967013,1.5438,183.71,183.58,4.7117]
[1736455967416,1.5438,183.71,183.59,20.388272]
[1736455968220,2.7224,183.69,183.64,2.7231]
[1736455968416,87.41469299,183.73,183.59,20.388272]
[1736455968613,1.5192,183.74,183.59,20.388272]
[1736455968913,2.7222,183.71,183.59,20.388272]
[1736455969121,1.5192,183.74,183.59,20.388272]
[1736455969420,109.45876499,183.78,183.62,20.388272]
[1736455969622,89.07049299,183.78,183.65,20.388272]
[1736455969816,87.41469299,183.78,183.69,20.388272]
[1736455970115,2.7212,183.77,183.73,2.7217]
[1736455970322,87.41469299,183.79,183.66,23.539272]
[1736455970517,2.7212,183.77,183.72,2.7218]
[1736455970820,87.41469299,183.79,183.67,1.6061]
[1736455971120,2.7212,183.77,183.72,2.7219]
[1736455972421,7.7758,183.84,183.69,20.388272]
[1736455972622,7.7758,183.84,183.69,26.508272]
[1736455973119,1.6558,183.84,183.72,20.388272]
[1736455973612,2.7207,183.81,183.76,2.7212]
[1736455973812,1.6558,183.84,183.69,26.508272]
[1736455974021,22.044072,183.84,183.69,26.508272]
[1736455974224,22.044072,183.84,183.73,2.7216]
[1736455974420,22.044072,183.84,183.69,26.508272]
[1736455975332,22.044072,183.84,183.74,2.7216]
[1736455976311,22.044072,183.84,183.76,2.7213]
[1736455977024,2.7207,183.81,183.76,2.7213]
[1736455977223,22.044072,183.84,183.75,2.7214]
[1736455978219,22.044072,183.84,183.72,2.7219]
[1736455978420,20.388272,183.78,183.67,1.6061]
[1736455978822,20.388272,183.78,183.71,2.7219]
[1736455979320,20.388272,183.81,183.67,1.6061]
[1736455979827,2.7212,183.77,183.67,1.6061]
[1736455980023,2.7212,183.77,183.72,2.7218]
[1736455980430,2.7214,183.76,183.72,2.7218]
[1736455980624,20.388272,183.81,183.71,2.722]
[1736455980825,20.388272,183.81,183.67,1.6061]
[1736455981025,20.388272,183.78,183.67,1.6061]
[1736455981221,2.7219,183.73,183.69,2.7223]
[1736455982021,20.388272,183.72,183.57,20.388272]
[1736455982225,20.388272,183.72,183.58,1.6201]
[1736455982521,2.7225,183.68,183.62,2.7232]
[1736455983630,20.388272,183.75,183.58,1.6201]
[1736455984024,2.7223,183.7,183.65,2.7228]
[1736455984432,20.388272,183.75,183.6,20.388272]
[1736455984825,2.7221,183.71,183.6,20.388272]
[1736455985023,20.388272,183.75,183.6,20.388272]
[1736455985525,2.722,183.71,183.6,20.388272]
[1736455986428,2.722,183.71,183.63,2.7232]
[1736455986629,20.388272,183.75,183.6,20.388272]
[1736455986825,1.6216,183.76,183.63,20.388272]
[1736455987029,26.508272,183.81,183.63,20.388272]
[1736455987231,20.388272,183.81,183.63,20.388272]
[1736455987535,20.388272,183.81,183.71,2.7219]
[1736455988725,20.388272,183.81,183.67,4.7815]
[1736455988932,2.7213,183.77,183.67,4.7815]
[1736455989531,2.7213,183.77,183.72,2.7218]
[1736455989732,20.388272,183.78,183.67,1.5282]
[1736455989931,20.388272,183.78,183.67,4.2507]
[1736455990231,2.7221,183.71,183.67,1.5282]
[1736455990431,20.388272,183.75,183.67,1.5282]
[1736455990633,20.388272,183.75,183.66,2.7227]
[1736455990833,2.7221,183.71,183.64,3.1793]
[1736455991035,2.7221,183.71,183.66,2.7228]
[1736455991233,2.7218,183.73,183.66,2.7228]
[1736455991540,20.388272,183.75,183.64,3.1793]
[1736455991834,20.388272,183.72,183.62,1.546]
[1736455992733,20.388272,183.69,183.56,6.12]
[1736455993031,20.388272,183.69,183.57,1.5901]
[1736455993740,2.723,183.65,183.57,1.5901]
[1736455994333,1.5028,183.73,183.57,21.978372]
[1736455994834,2.7222,183.7,183.57,21.978372]
[1736455995429,1.5028,183.73,183.57,21.978372]
[1736455996233,20.388272,183.71,183.57,21.978372]
[1736455996635,20.388272,183.71,183.57,1.5901]
[1736455997236,2.7229,183.65,183.57,1.5901]
[1736455998042,2.7229,183.65,183.6,2.7236]
[1736455998342,20.388272,183.68,183.6,2.7236]
[1736455999042,20.388272,183.68,183.57,1.5901]
[1736455999246,20.388272,183.68,183.59,2.7238]
[1736455999743,20.388272,183.68,183.58,2.7239]
[1736456000046,20.388272,183.65,183.49,20.388272]
[1736456000243,1.5242,183.64,183.49,20.388272]
[1736456000444,4.5928,183.64,183.49,20.388272]
[1736456001346,3.0918,183.64,183.52,20.388272]
[1736456001543,1.5242,183.64,183.52,20.388272]
[1736456001842,26.508272,183.68,183.52,20.388272]
[1736456002748,20.388272,183.71,183.55,20.388272]
[1736456003046,1.5319,183.73,183.58,20.388272]
[1736456003241,2.722,183.72,183.67,2.7226]
[1736456003437,1.5319,183.73,183.59,1.6165]
[1736456003747,2.722,183.71,183.65,2.7228]
[1736456004248,1.5319,183.73,183.59,1.6165]
[1736456004646,6.12,183.76,183.61,20.388272]
[1736456005144,2.7215,183.75,183.68,2.7224]
[1736456005445,1.5221,183.77,183.61,20.388272]
[1736456005947,1.5221,183.77,183.6,20.388272]
[1736456006249,2.7218,183.73,183.67,2.7225]
[1736456006449,1.5221,183.77,183.6,20.388272]
[1736456007845,1.5221,183.77,183.59,1.6165]
[1736456008046,2.7224,183.69,183.63,2.7231]
[1736456008251,20.388272,183.72,183.59,1.6165]
[1736456010144,2.7224,183.69,183.64,2.723]
[1736456010652,20.388272,183.72,183.59,1.6165]
[1736456010847,2.7229,183.66,183.61,2.7234]
[1736456011052,20.388272,183.69,183.59,1.6165]
[1736456011448,20.388272,183.72,183.59,1.6165]
[1736456011848,2.7221,183.71,183.66,2.7227]
[1736456012147,1.5221,183.77,183.59,1.6165]
[1736456012148,1.5221,183.77,183.6,20.388272]
[1736456012353,2.7219,183.73,183.65,2.7229]
[1736456012551,20.388272,183.75,183.6,20.388272]
[1736456012950,2.7219,183.72,183.67,2.7225]
[1736456013158,20.388272,183.71,183.59,1.6165]
[1736456014655,2.7225,183.68,183.59,1.6165]
[1736456014854,20.388272,183.71,183.59,1.6165]
[1736456015049,2.7224,183.69,183.59,1.6165]
[1736456015453,20.388272,183.74,183.59,1.6165]
[1736456015958,2.7223,183.7,183.59,1.6165]
[1736456016454,2.7223,183.7,183.65,2.7228]
[1736456016657,2.7217,183.74,183.63,20.388272]
[1736456016950,1.5221,183.77,183.64,1.5081]
[1736456017156,88.67723426,183.81,183.66,20.388272]
[1736456017560,2.7207,183.8,183.69,20.388272]
[1736456017759,88.67723426,183.81,183.7,1.6317]
[1736456018054,1.5751,183.84,183.7,1.6317]
[1736456018254,88.67723426,183.86,183.72,20.388272]
[1736456018456,88.67723426,183.86,183.75,20.388272]
[1736456018752,88.67723426,183.86,183.78,20.388272]
[1736456018955,88.67723426,183.92,183.81,20.388272]
[1736456019154,88.67723426,183.92,183.82,3.2345]
[1736456019657,88.67723426,183.92,183.84,20.388272]
[1736456020258,21.892272,184.0,183.84,20.388272]
[1736456020455,2.7183,183.96,183.89,2.7193]
[1736456020856,2.7182,183.98,183.89,2.7193]
[1736456021053,21.892272,184.0,183.84,20.388272]
[1736456021358,1.504,184.0,183.87,20.388272]
[1736456021762,1.504,184.0,183.92,2.7188]
[1736456022153,20.388272,184.03,183.87,26.488272]
[1736456022357,1.504,184.05,183.9,20.388272]
[1736456022562,20.388272,184.06,183.91,1.5729]
[1736456022757,21.892272,184.06,183.91,1.5729]
[1736456022956,21.892272,184.06,183.92,1.5234]
[1736456023163,21.892272,184.06,183.95,2.7185]
[1736456023367,21.892272,184.06,183.92,1.5234]
[1736456024271,2.7172,184.04,183.92,1.5234]
[1736456024466,21.892272,184.06,183.92,1.5234]
[1736456024667,1.504,184.06,183.93,21.967372]
[1736456024859,2.717,184.05,183.96,2.7182]
[1736456025170,2.717,184.05,183.93,21.967372]
[1736456025367,1.504,184.06,183.93,21.967372]
[1736456025671,1.504,184.06,183.96,20.388272]
[1736456026666,26.78058078,184.12,183.96,20.388272]
[1736456026861,1.5553,184.11,183.96,20.388272]
[1736456027265,2.7166,184.08,184.0,2.7177]
[1736456027765,1.5553,184.11,183.96,20.388272]
[1736456028063,1.5553,184.11,183.95,6.1]
[1736456028064,1.5553,184.11,183.99,20.388272]
[1736456028368,4.90020878,184.12,184.0,1.6166]
[1736456028666,4.90020878,184.12,184.02,20.388272]
[1736456028863,4.90020878,184.12,184.03,1.6106]
[1736456029065,20.388272,184.18,184.03,9.2958]
[1736456029266,26.488272,184.21,184.05,20.388272]
[1736456029569,20.388272,184.21,184.05,20.388272]
[1736456029760,20.388272,184.18,184.03,9.2958]
[1736456030169,2.716,184.13,184.05,2.717]
[1736456030360,20.388272,184.18,184.05,2.717]
[1736456030768,20.388272,184.21,184.03,9.2958]
[1736456030769,2.7164,184.1,184.03,1.6106]
[1736456031066,20.388272,184.15,184.03,1.6106]
[1736456031867,20.388272,184.21,184.03,1.6106]
[1736456032064,2.7155,184.16,184.09,2.7164]
[1736456032264,20.388272,184.21,184.03,1.6106]
[1736456032568,20.388272,184.21,184.05,20.388272]
[1736456032769,2.7152,184.18,184.12,2.716]
[1736456033071,20.388272,184.21,184.12,2.716]
[1736456033273,2.7147,184.21,184.14,2.7156]
[1736456036264,20.388272,184.24,184.09,3.2227]
[1736456036466,20.388272,184.21,184.09,3.2227]
[1736456036971,20.388272,184.21,184.1,2.7163]
[1736456037271,20.388272,184.21,184.09,3.2227]
[1736456037472,2.7151,184.18,184.11,2.716]
[1736456037775,20.388272,184.24,184.09,3.2227]
[1736456037965,1.5099,184.23,184.09,3.2227]
[1736456038275,20.388272,184.21,184.09,1.5697]
[1736456038675,2.7153,184.17,184.11,2.716]
[1736456038872,20.388272,184.21,184.09,1.5697]
[1736456039070,1.5099,184.23,184.09,1.5697]
[1736456039275,2.7148,184.21,184.15,2.7155]
[1736456039573,20.388272,184.26,184.09,1.5697]
[1736456040173,2.7149,184.2,184.09,1.5697]
[1736456041072,2.7149,184.2,184.12,2.7159]
[1736456041377,2.7149,184.2,184.09,1.5697]
[1736456041677,2.7149,184.2,184.14,2.7156]
[1736456042375,2.7149,184.2,184.11,20.388272]
[1736456042575,2.7141,184.26,184.2,2.7148]
[1736456043374,1.5401,184.39,184.15,6.08]
[1736456043569,2.7127,184.34,184.28,2.7136]
[1736456044073,3.0285,184.39,184.25,1.5003]
[1736456044270,2.7127,184.34,184.28,2.7136]
[1736456045077,3.0285,184.39,184.29,2.7134]
[1736456046079,20.388272,184.37,184.25,3.0076]
[1736456046876,20.388272,184.37,184.25,1.5003]
[1736456047277,20.388272,184.37,184.26,2.7138]
[1736456047477,20.388272,184.37,184.25,1.5003]
[1736456048275,2.7128,184.34,184.28,2.7136]
[1736456048481,20.388272,184.37,184.25,1.5003]
[1736456049581,3.0285,184.39,184.25,1.5003]
[1736456050088,2.7127,184.35,184.25,1.5003]
[1736456050880,3.0285,184.39,184.25,1.5003]
[1736456051591,2.7126,184.35,184.3,2.7133]
[1736456052186,3.0285,184.39,184.27,2.7137]
[1736456052393,20.388272,184.38,184.27,2.7137]
[1736456052692,2.7133,184.31,184.23,6.08]
[1736456052995,20.388272,184.38,184.23,6.08]
[1736456053383,2.7127,184.34,184.28,2.7135]
[1736456053681,3.0285,184.39,184.24,1.6445]
[1736456053682,20.388272,184.35,184.24,1.6445]
[1736456053884,20.388272,184.26,184.02,6.08]
[1736456054092,20.388272,184.26,184.11,4.823]
[1736456054093,26.468272,184.26,184.11,4.823]
[1736456054292,2.7149,184.2,184.14,2.7157]
[1736456054593,20.388272,184.24,184.11,4.823]
[1736456055090,20.388272,184.24,184.13,2.7157]
[1736456055284,20.388272,184.24,184.11,4.823]
[1736456055686,3.0328,184.25,184.11,4.823]
[1736456056186,1.543,184.25,184.2,2.7147]
[1736456056383,1.543,184.25,184.16,20.388272]
[1736456056892,1.543,184.25,184.12,6.08]
[1736456057287,1.543,184.25,184.13,20.388272]
[1736456057288,4.2572,184.25,184.13,20.388272]
[1736456057591,1.543,184.25,184.13,20.388272]
[1736456057791,1.543,184.25,184.21,2.7146]
[1736456059193,2.7136,184.28,184.22,2.7144]
[1736456059391,1.6598,184.3,184.2,6.08]
[1736456059783,1.6598,184.3,184.21,1.5446]
[1736456060192,1.6598,184.3,184.26,2.7138]
[1736456060391,1.6598,184.3,184.21,1.5446]
[1736456060599,91.69993426,184.36,184.22,20.388272]
[1736456061196,90.20753426,184.36,184.25,20.388272]
[1736456061696,91.38973426,184.36,184.3,2.7132]
[1736456062093,1.6598,184.37,184.3,2.7132]
[1736456062290,2.7126,184.35,184.29,2.7134]
[1736456063297,22.15630682,184.37,184.25,20.388272]
[1736456063599,24.86860682,184.37,184.31,2.713]
[1736456063793,4.3721,184.37,184.31,2.713]
[1736456063994,1.6598,184.37,184.31,2.713]
[1736456064193,2.7126,184.35,184.29,2.7133]
[1736456064394,1.6598,184.37,184.22,20.388272]
[1736456064594,2.7133,184.31,184.25,2.7139]
[1736456064794,2.7133,184.31,184.21,1.5446]
[1736456064795,20.388272,184.35,184.21,1.5446]
[1736456065299,2.7133,184.31,184.25,2.714]
[1736456065594,1.6598,184.37,184.22,20.388272]
[1736456065800,4.3721,184.37,184.31,2.7131]
[1736456066098,1.6598,184.37,184.25,20.388272]
[1736456066599,20.388272,184.35,184.22,20.388272]
[1736456066793,20.388272,184.35,184.21,1.5446]
[1736456068901,2.7129,184.34,184.27,2.7136]
[1736456069107,2.7129,184.34,184.21,1.5446]
[1736456069690,20.388272,184.35,184.21,1.5446]
[1736456070098,20.388272,184.32,184.21,1.5446]
[1736456070803,2.7135,184.29,184.24,2.7141]
[1736456071097,20.388272,184.35,184.21,1.5446]
[1736456072099,2.713,184.33,184.27,2.7137]
[1736456072402,2.713,184.33,184.21,1.5446]
[1736456072597,2.713,184.33,184.27,2.7136]
[1736456073104,94.73723426,184.36,184.22,20.388272]
[1736456073302,94.73723426,184.36,184.29,2.7133]
[1736456073506,94.73723426,184.36,184.23,1.6378]
[1736456073905,6.06,184.36,184.23,1.6378]
[1736456074699,94.73723426,184.36,184.23,1.6378]
[1736456075106,2.7131,184.32,184.23,1.6378]
[1736456075405,94.73723426,184.36,184.23,1.6378]
[1736456075704,94.73723426,184.36,184.28,2.7136]
[1736456075705,2.7129,184.33,184.28,2.7136]
[1736456076102,2.7129,184.33,184.23,1.6378]
[1736456076103,94.73723426,184.36,184.23,1.6378]
[1736456076409,2.7127,184.35,184.23,1.6378]
[1736456076707,110.61569524,184.37,184.25,20.388272]
[1736456076905,2.7125,184.36,184.25,20.388272]
[1736456077403,1.6598,184.37,184.25,26.448272]
[1736456078106,88.67723426,184.4,184.25,26.448272]
[1736456078300,88.67723426,184.4,184.28,20.388272]
[1736456078499,88.67723426,184.4,184.36,2.7124]
[1736456078701,88.67723426,184.4,184.34,20.388272]
[1736456078908,54.34993426,184.44,184.38,20.388272]
[1736456079109,16.04513426,184.44,184.43,2.7114]
[1736456079310,6.15273426,184.44,184.43,8.7714]
[1736456080004,20.388272,184.51,184.41,8.7717]
[1736456080207,20.388272,184.54,184.41,6.06]
[1736456080409,20.388272,184.54,184.42,2.7114]
[1736456081208,20.388272,184.54,184.41,6.06]
[1736456081408,2.7103,184.51,184.44,2.7113]
[1736456081805,2.7102,184.51,184.44,2.7113]
[1736456083311,6.06,184.61,184.43,2.7114]
[1736456083513,6.06,184.61,184.41,26.448272]
[1736456084213,2.7107,184.49,184.41,26.448272]
[1736456084714,2.7104,184.51,184.44,2.7113]
[1736456085215,6.06,184.61,184.44,2.7113]
[1736456087122,16.31,184.67,184.41,26.448272]
[1736456087419,47.25364998,184.76,184.5,20.388272]
[1736456087717,1.6,184.67,184.53,20.388272]
[1736456087918,20.388272,184.65,184.5,20.388272]
[1736456088316,2.7088,184.61,184.52,2.7101]
[1736456088521,20.388272,184.65,184.5,20.388272]
[1736456088721,4.7795,184.67,184.5,20.388272]
[1736456088919,2.709,184.6,184.52,2.71]
[1736456089121,2.709,184.6,184.5,20.388272]
[1736456089623,20.388272,184.64,184.5,20.388272]
[1736456089821,2.7091,184.59,184.49,6.06]
[1736456090024,3.1558,184.58,184.49,6.06]
[1736456091124,3.1558,184.58,184.52,2.71]
[1736456091323,3.1558,184.58,184.49,6.06]
[1736456092324,3.1558,184.58,184.5,20.388272]
[1736456092524,3.1558,184.58,184.5,2.7103]
[1736456093226,2.7095,184.56,184.51,2.7102]
[1736456093829,2.7094,184.57,184.51,2.7102]
[1736456094237,3.1558,184.58,184.52,2.7101]
[1736456094535,3.1558,184.58,184.47,20.388272]
[1736456094724,1.5503,184.57,184.47,2.7108]
[1736456095130,2.7099,184.54,184.47,2.7108]
[1736456095338,2.7099,184.54,184.48,2.7106]
[1736456095930,1.5503,184.57,184.43,7.6245]
[1736456096635,2.7098,184.54,184.48,2.7105]
[1736456098035,1.5503,184.57,184.48,20.388272]
[1736456098532,4.2597,184.57,184.52,2.7101]
[1736456099437,2.7095,184.56,184.48,20.388272]
[1736456099935,2.7097,184.55,184.5,2.7103]
[1736456100132,1.5503,184.57,184.43,7.6245]
[1736456100331,1.5503,184.57,184.45,20.388272]
[1736456100534,2.7099,184.53,184.48,2.7107]
[1736456101443,2.7102,184.52,184.46,2.711]
[1736456101638,1.5503,184.57,184.46,2.711]
[1736456101835,2.7102,184.52,184.46,2.711]
[1736456102136,1.5503,184.57,184.46,2.711]
[1736456102838,20.388272,184.55,184.39,20.388272]
[1736456103037,6.04,184.54,184.39,20.388272]
[1736456103537,6.04,184.54,184.42,20.388272]
[1736456103739,2.7104,184.51,184.42,20.388272]
[1736456103933,2.7104,184.51,184.46,2.7109]
[1736456104338,2.7104,184.51,184.44,2.7112]
[1736456104546,6.04,184.54,184.42,20.388272]
[1736456104839,1.6563,184.5,184.42,20.388272]
[1736456105137,2.7112,184.45,184.39,20.388272]
[1736456105634,2.7113,184.44,184.4,2.7119]
[1736456105829,2.7113,184.44,184.39,20.388272]
[1736456106031,1.5344,184.48,184.39,20.388272]
[1736456106641,1.5344,184.48,184.41,2.7117]
[1736456107141,2.7111,184.46,184.41,2.7117]
[1736456108639,1.5344,184.48,184.39,20.388272]
[1736456108843,2.7113,184.45,184.4,2.7118]
[1736456109642,2.7116,184.42,184.38,2.712]
[1736456109842,2.7116,184.42,184.33,10.18287382]
[1736456109843,1.5344,184.48,184.33,4.14287382]
[1736456110644,1.5344,184.48,184.37,2.7123]
[1736456110839,1.5344,184.48,184.33,4.14287382]
[1736456111039,1.5344,184.48,184.37,20.388272]
[1736456111235,2.7112,184.45,184.4,2.7118]
[1736456111445,2.7112,184.45,184.39,12.7023552]
[1736456113148,2.7112,184.45,184.41,2.7117]
[1736456114250,1.5344,184.48,184.39,15.4142552]
[1736456114548,1.5344,184.48,184.39,12.7023552]
[1736456115643,1.5344,184.48,184.41,2.7117]
[1736456115644,2.7112,184.45,184.41,2.7117]
[1736456115941,1.5344,184.48,184.36,12.7023552]
[1736456116245,2.7117,184.42,184.38,2.712]
[1736456116640,2.7121,184.39,184.35,2.7126]
[1736456116847,12.7023552,184.46,184.33,16.84522902]
[1736456117145,12.7023552,184.46,184.36,12.7023552]
[1736456117346,2.7116,184.42,184.36,12.7023552]
[1736456117747,2.7116,184.42,184.38,2.7121]
[1736456118646,2.7117,184.41,184.38,2.7121]
[1736456118846,1.5344,184.48,184.38,2.7121]
[1736456119641,2.7116,184.42,184.38,2.7121]
[1736456119845,12.7023552,184.46,184.36,2.7123]
[1736456120047,12.7023552,184.46,184.33,16.84522902]
[1736456120250,2.7115,184.43,184.33,16.84522902]
[1736456120446,12.7023552,184.46,184.33,16.84522902]
[1736456120847,2.7117,184.41,184.33,16.84522902]
[1736456121652,2.7117,184.41,184.35,2.7125]
[1736456121853,2.7121,184.39,184.33,16.84522902]
[1736456122052,12.7023552,184.46,184.33,16.84522902]
[1736456122955,2.7118,184.41,184.37,2.7122]
[1736456123349,2.7118,184.41,184.33,16.84522902]
[1736456123652,2.7118,184.41,184.38,2.7121]
[1736456124758,12.7023552,184.46,184.33,16.84522902]
[1736456125150,12.7023552,184.43,184.3,12.7023552]
[1736456125353,12.7023552,184.4,184.3,12.7023552]
[1736456125548,2.7126,184.35,184.3,12.7023552]
[1736456126054,2.7126,184.35,184.31,2.7131]
[1736456126959,1.627,184.42,184.34,2.7127]
[1736456127360,2.7119,184.4,184.33,12.7023552]
[1736456127760,14.3527552,184.46,184.33,12.7023552]
[1736456127960,2.7117,184.42,184.37,2.7123]
[1736456128159,14.3527552,184.46,184.36,12.7023552]
[1736456128359,2.711,184.46,184.36,12.7023552]
[1736456128661,1.5344,184.48,184.39,12.7023552]
[1736456128854,2.7104,184.5,184.42,12.7023552]
[1736456129050,1.6504,184.51,184.42,12.7023552]
[1736456129354,1.6539,184.57,184.48,12.7023552]
[1736456129553,1.5633,184.6,184.48,12.7023552]
[1736456129864,1.6009,184.62,184.51,12.7023552]
[1736456130158,2.7089,184.6,184.51,12.7023552]
[1736456130359,12.7023552,184.61,184.46,1.5148]
[1736456130561,2.7096,184.56,184.49,12.7023552]
[1736456130960,12.7023552,184.61,184.49,12.7023552]
[1736456131165,12.7023552,184.58,184.46,14.2171552]
[1736456131362,26.35349642,184.57,184.44,1.5999]
[1736456131661,2.7102,184.52,184.43,2.7113]
[1736456131956,20.31349642,184.54,184.4,3.0308]
[1736456132162,1.6009,184.53,184.4,3.0308]
[1736456132362,2.7107,184.48,184.42,2.7115]
[1736456132563,1.6009,184.53,184.4,3.0308]
[1736456132965,20.31349642,184.51,184.36,20.31349642]
[1736456133461,20.31349642,184.51,184.37,2.7123]
[1736456133862,20.31349642,184.51,184.33,24.38429642]
[1736456134058,1.6009,184.53,184.36,2.7124]
[1736456134059,2.7116,184.42,184.36,2.7124]
[1736456134467,2.7116,184.42,184.33,24.38429642]
[1736456134666,2.7113,184.45,184.33,24.38429642]
[1736456135359,2.7113,184.45,184.36,2.7124]
[1736456135665,2.7114,184.43,184.33,24.38429642]
[1736456136065,7.6519,184.47,184.39,2.712]
[1736456136277,2.7113,184.44,184.33,24.38429642]
[1736456136967,1.6319,184.47,184.33,24.38429642]
[1736456137170,1.6319,184.47,184.35,2.7125]
[1736456137365,1.6319,184.47,184.33,23.43049642]
[1736456137667,2.7113,184.45,184.38,2.712]
[1736456138164,2.7113,184.44,184.33,23.43049642]
[1736456138467,2.7113,184.44,184.39,2.712]
[1736456139364,6.02,184.48,184.36,20.31349642]
[1736456139568,6.02,184.51,184.36,20.31349642]
[1736456139766,6.02,184.51,184.39,20.31349642]
[1736456141068,2.7107,184.48,184.39,20.31349642]
[1736456141673,2.7107,184.48,184.42,2.7115]
[1736456141868,2.7109,184.47,184.42,2.7115]
[1736456142370,1.4961,184.52,184.39,20.31349642]
[1736456142567,2.7104,184.5,184.39,20.31349642]
[1736456142973,2.7104,184.5,184.42,20.31349642]
[1736456143269,1.6009,184.53,184.42,20.31349642]
[1736456143467,1.5633,184.55,184.45,20.31349642]